bitfinex/quotes_SOLUSD_20250721
["timestamp","ask_amount","ask_price","bid_price","bid_amount"]
[1753063967511,3.4799436,180.74,180.73,0.72]
[1753063967713,3.4799436,180.74,180.73,39.86]
[1753063969915,3.4799436,180.74,180.73,0.72]
[1753063970115,3.4799436,180.74,180.73,39.86]
[1753063971410,0.06,180.76,180.73,39.86]
[1753063971631,0.06,180.76,180.73,39.14]
[1753063971807,3.4799436,180.74,180.73,39.14]
[1753063972222,3.4799436,180.74,180.73,39.86]
[1753063973212,3.4799436,180.74,180.71,0.5]
[1753063973530,3.4799436,180.72,180.7,80.66253692]
[1753063973709,3.4799436,180.71,180.7,80.66253692]
[1753063974211,3.4799436,180.71,180.7,81.38253692]
[1753063975027,3.4799436,180.74,180.7,81.38253692]
[1753063975227,3.4799436,180.74,180.71,39.86]
[1753063975417,3.4799436,180.72,180.71,39.86]
[1753063976036,3.4799436,180.73,180.71,39.86]
[1753063976345,3.4799436,180.73,180.72,0.72]
[1753063977218,3.4799436,180.73,180.72,81.38253692]
[1753063978334,3.4799436,180.73,180.72,80.66253692]
[1753063979515,3.7399436,180.73,180.72,119.80253692]
[1753063979841,3.4799436,180.73,180.72,119.80253692]
[1753063980035,0.06,180.76,180.72,120.52253692]
[1753063980241,3.4799436,180.73,180.72,120.52253692]
[1753063981144,3.4799436,180.73,180.72,119.80253692]
[1753063982016,3.4799436,180.73,180.72,120.30253692]
[1753063983029,3.4799436,180.73,180.72,121.02253692]
[1753063983226,0.06,180.76,180.72,121.02253692]
[1753063983227,3.4799436,180.74,180.72,121.02253692]
[1753063983429,0.06,180.76,180.72,121.02253692]
[1753063983747,3.4799436,180.73,180.72,121.02253692]
[1753063994841,3.4799436,180.73,180.72,81.88253692]
[1753063995036,3.5399436,180.73,180.72,121.00253692]
[1753063995245,0.06,180.73,180.72,121.00253692]
[1753064000192,0.06,180.73,180.72,167.64805878]
[1753064000344,0.06,180.73,180.72,171.12800238]
[1753064002478,0.06,180.76,180.72,171.12800238]
[1753064002479,0.06,180.76,180.74,106.60253692]
[1753064002642,0.06,180.76,180.75,43.15319394]
[1753064002839,0.06,180.76,180.75,120.94578726]
[1753064003036,0.06,180.76,180.75,129.40498397]
[1753064004043,0.06,180.76,180.75,81.27253692]
[1753064004269,0.06,180.76,180.75,120.92578726]
[1753064004471,0.06,180.76,180.75,120.37253692]
[1753064005064,0.06,180.76,180.75,81.27253692]
[1753064005251,3.5399436,180.76,180.75,120.37253692]
[1753064005446,0.06,180.76,180.75,120.37253692]
[1753064009545,3.5399436,180.76,180.75,119.70253692]
[1753064009737,3.7999436,180.76,180.73,80.60253692]
[1753064010042,0.06,180.76,180.74,39.1]
[1753064011065,3.4799436,180.75,180.74,39.1]
[1753064011372,3.4799436,180.75,180.73,80.60253692]
[1753064011570,3.4799436,180.74,180.72,81.10253692]
[1753064011888,0.06,180.76,180.72,81.10253692]
[1753064011889,0.06,180.76,180.73,39.77]
[1753064012371,0.06,180.76,180.73,39.1]
[1753064012580,0.06,180.76,180.73,39.77]
[1753064013150,3.4799436,180.74,180.73,39.77]
[1753064014441,3.4799436,180.75,180.73,39.77]
[1753064014775,3.4799436,180.75,180.74,0.67]
[1753064015591,0.06,180.76,180.74,81.27253692]
[1753064015879,0.06,180.76,180.75,39.1]
[1753064016378,0.06,180.76,180.75,39.77]
[1753064017046,3.5399436,180.76,180.75,120.37253692]
[1753064019072,3.5399436,180.76,180.75,81.27253692]
[1753064019277,3.5399436,180.76,180.75,120.37253692]
[1753064021966,3.5399436,180.76,180.75,81.27253692]
[1753064022158,3.5399436,180.76,180.75,120.35253692]
[1753064023659,0.06,180.76,180.75,120.35253692]
[1753064023859,3.5399436,180.76,180.75,120.35253692]
[1753064025566,0.06,180.76,180.75,120.35253692]
[1753064025766,3.5399436,180.76,180.75,120.35253692]
[1753064026657,0.06,180.76,180.75,120.35253692]
[1753064026958,3.5399436,180.76,180.75,120.35253692]
[1753064028993,0.06,180.76,180.75,120.35253692]
[1753064029868,3.5399436,180.76,180.75,120.35253692]
[1753064030388,0.06,180.76,180.75,120.35253692]
[1753064031690,0.06,180.76,180.75,45.28250345]
[1753064031883,0.06,180.76,180.75,53.61405379]
[1753064032083,0.06,180.76,180.75,73.87868136]
[1753064032269,0.06,180.76,180.75,70.39873776]
[1753064032791,0.06,180.76,180.75,73.87868136]
[1753064033094,0.06,180.76,180.75,78.19880835]
[1753064033881,0.06,180.76,180.75,73.87868136]
[1753064036689,0.06,180.76,180.75,73.85868136]
[1753064037282,0.06,180.76,180.75,70.37873776]
[1753064040374,0.06,180.76,180.75,17.33793431]
[1753064040593,3.7999436,180.76,180.75,80.60253692]
[1753064040798,3.7999436,180.76,180.75,119.66253692]
[1753064041377,3.7999436,180.76,180.75,80.60253692]
[1753064041576,3.7999436,180.76,180.75,39.06]
[1753064041796,3.7999436,180.76,180.74,39.06]
[1753064041997,3.4799436,180.75,180.74,39.06]
[1753064042300,3.7399436,180.75,180.74,39.06]
[1753064042889,3.7399436,180.75,180.73,39.09]
[1753064042890,7.2198872,180.75,180.73,39.09]
[1753064043090,7.2198872,180.74,180.73,0.03]
[1753064044698,12.75269676,180.74,180.69,0.03]
[1753064044884,3.4799436,180.72,180.7,39.06]
[1753064045192,0.26,180.71,180.69,39.09]
[1753064045416,3.4799436,180.72,180.69,0.03]
[1753064045417,0.26,180.7,180.69,0.03]
[1753064045623,0.26,180.7,180.69,39.09]
[1753064045811,0.26,180.7,180.69,0.03]
[1753064046012,3.7399436,180.7,180.69,0.03]
[1753064046727,0.06,180.76,180.69,0.03]
[1753064046925,0.26,180.74,180.7,39.06]
[1753064047122,3.4799436,180.71,180.7,39.06]
[1753064047942,3.4799436,180.71,180.7,39.56]
[1753064049943,0.06,180.76,180.7,39.56]
[1753064050138,3.4799436,180.71,180.7,120.16253692]
[1753064053726,3.4799436,180.71,180.7,120.82253692]
[1753064054126,0.06,180.76,180.7,120.82253692]
[1753064054339,0.06,180.76,180.71,0.66]
[1753064054340,3.4799436,180.73,180.71,0.66]
[1753064054540,3.4799436,180.73,180.72,39.72]
[1753064055054,3.4799436,180.73,180.72,39.06]
[1753064055539,3.7399436,180.73,180.7,81.10253692]
[1753064055850,0.26,180.75,180.71,39.06]
[1753064056026,0.26,180.74,180.71,39.06]
[1753064056939,3.4799436,180.72,180.71,39.06]
[1753064058151,0.26,180.74,180.71,39.06]
[1753064058320,3.4799436,180.72,180.71,39.06]
[1753064060429,3.4799436,180.72,180.71,39.09]
[1753064061259,3.4799436,180.72,180.71,0.03]
[1753064061260,6.9598872,180.72,180.71,0.03]
[1753064061441,3.4799436,180.72,180.71,39.09]
[1753064061846,3.4799436,180.72,180.71,0.03]
[1753064062441,0.06,180.76,180.71,0.69]
[1753064062740,0.06,180.76,180.72,39.72]
[1753064063254,0.32,180.76,180.72,39.72]
[1753064063867,3.4799436,180.73,180.72,39.72]
[1753064065066,3.4799436,180.74,180.72,39.72]
[1753064065355,3.4799436,180.74,180.73,0.66]
[1753064067436,3.4799436,180.74,180.73,39.72]
[1753064067864,0.06,180.76,180.73,39.72]
[1753064068070,3.4799436,180.74,180.73,39.06]
[1753064068676,3.4799436,180.74,180.73,39.72]
[1753064068879,3.4799436,180.74,180.73,120.32253692]
[1753064070360,3.4799436,180.74,180.73,80.60253692]
[1753064070561,3.4799436,180.74,180.73,120.30253692]
[1753064070761,2.4799436,180.74,180.73,120.30253692]
[1753064071280,2.4799436,180.74,180.73,119.64253692]
[1753064073981,2.4799436,180.74,180.73,80.60253692]
[1753064074182,2.7399436,180.74,180.73,119.64253692]
[1753064074386,2.4799436,180.74,180.73,119.64253692]
[1753064074585,2.4799436,180.74,180.71,0.03]
[1753064074586,11.75278585,180.74,180.71,0.03]
[1753064074885,6.9598872,180.72,180.71,0.03]
[1753064075396,7.2198872,180.72,180.71,0.03]
[1753064075596,5.53289865,180.74,180.71,0.03]
[1753064075800,6.9598872,180.72,180.71,0.03]
[1753064076493,7.2198872,180.72,180.71,0.03]
[1753064077299,12.75330906,180.72,180.71,0.03]
[1753064077603,12.75330906,180.72,180.69,0.03]
[1753064077803,3.4799436,180.7,180.69,0.03]
[1753064078179,3.7399436,180.7,180.69,0.03]
[1753064079278,3.4799436,180.7,180.69,0.03]
[1753064080210,3.4799436,180.7,180.69,0.69]
[1753064080604,3.4799436,180.7,180.69,39.73]
[1753064082490,3.4799436,180.7,180.69,39.07]
[1753064084943,3.7399436,180.7,180.69,0.03]
[1753064085148,9.27397791,180.7,180.67,0.03]
[1753064085425,3.4799436,180.68,180.65,39.07]
[1753064085624,3.4799436,180.66,180.65,0.03]
[1753064086118,7.2198872,180.66,180.65,0.03]
[1753064086632,7.2198872,180.66,180.64,0.03]
[1753064086824,7.2198872,180.65,180.64,0.03]
[1753064087331,7.2198872,180.65,180.61,0.03]
[1753064087533,3.4799436,180.62,180.61,0.03]
[1753064087912,3.7399436,180.62,180.61,0.03]
[1753064088122,9.27642903,180.62,180.6,0.03]
[1753064088329,3.7399436,180.61,180.6,0.03]
[1753064088832,3.4799436,180.61,180.6,0.03]
[1753064089533,3.7399436,180.61,180.6,0.03]
[1753064090452,9.27673558,180.61,180.58,0.03]
[1753064090653,3.4799436,180.59,180.58,0.03]
[1753064091159,3.7399436,180.59,180.56,0.03]
[1753064091335,3.4799436,180.57,180.56,0.03]
[1753064092352,0.26,180.65,180.56,39.73]
[1753064092556,3.4799436,180.58,180.57,0.66]
[1753064093126,3.4799436,180.63,180.57,0.66]
[1753064093350,3.4799436,180.59,180.57,0.66]
[1753064094457,3.4799436,180.58,180.57,0.66]
[1753064094957,0.26,180.65,180.57,0.66]
[1753064095259,27.5301,180.67,180.57,0.66]
[1753064095260,3.4799436,180.6,180.57,81.26253692]
[1753064095428,3.4799436,180.6,180.58,0.66]
[1753064095629,3.4799436,180.6,180.59,39.04]
[1753064095843,3.4799436,180.6,180.59,39.7]
[1753064096331,3.4799436,180.61,180.59,120.30253692]
[1753064096542,41.92772661,180.69,180.6,0.66]
[1753064096543,3.4799436,180.62,180.6,0.66]
[1753064096738,3.4799436,180.62,180.6,81.26253692]
[1753064096951,3.4799436,180.62,180.6,80.60253692]
[1753064097169,3.4799436,180.62,180.61,0.66]
[1753064100177,0.26,180.67,180.61,0.66]
[1753064100351,26.0,180.69,180.62,39.04]
[1753064100352,3.4799436,180.64,180.62,39.04]
[1753064100552,3.4799436,180.64,180.63,0.66]
[1753064100756,3.4799436,180.65,180.63,0.66]
[1753064101168,46.52462757,180.72,180.63,81.26253692]
[1753064101459,3.4799436,180.67,180.64,1.21358724]
[1753064101688,3.4799436,180.69,180.65,39.7]
[1753064101947,3.4799436,180.69,180.66,1.21352596]
[1753064102143,3.4799436,180.7,180.67,0.66]
[1753064102466,3.4799436,180.7,180.68,39.04]
[1753064102848,0.06,180.74,180.69,0.66]
[1753064103182,3.4799436,180.7,180.68,39.04]
[1753064103353,0.06,180.74,180.68,39.04]
[1753064103354,3.4799436,180.69,180.68,39.04]
[1753064103550,3.4799436,180.7,180.68,39.04]
[1753064103740,3.4799436,180.7,180.69,0.66]
[1753064104367,0.06,180.73,180.69,0.66]
[1753064104566,3.4799436,180.7,180.69,0.66]
[1753064105073,3.4799436,180.7,180.65,26.5535566]
[1753064105251,3.4799436,180.66,180.65,0.66]
[1753064105453,3.4799436,180.66,180.65,39.7]
[1753064108961,3.4799436,180.67,180.65,39.7]
[1753064109182,3.4799436,180.66,180.65,119.64253692]
[1753064109659,3.4799436,180.66,180.65,119.62253692]
[1753064109985,3.4799436,180.66,180.65,120.28253692]
[1753064110778,3.4799436,180.66,180.65,39.68]
[1753064116079,3.4799436,180.66,180.65,39.02]
[1753064116462,3.4799436,180.66,180.65,119.62253692]
[1753064117267,3.4799436,180.66,180.65,80.60253692]
[1753064117463,3.4799436,180.66,180.65,119.62253692]
[1753064121378,9.27521273,180.66,180.63,80.60253692]
[1753064121599,3.4799436,180.64,180.63,80.60253692]
[1753064122598,3.4799436,180.64,180.62,39.02]
[1753064122803,3.4799436,180.63,180.62,39.02]
[1753064124505,3.4799436,180.63,180.6,80.60253692]
[1753064124679,3.4799436,180.61,180.6,80.60253692]
[1753064124878,3.4799436,180.61,180.6,119.62253692]
[1753064125094,3.4799436,180.61,180.6,80.60253692]
[1753064125295,3.4799436,180.61,180.6,39.02]
[1753064126179,3.4799436,180.61,180.58,81.32253692]
[1753064126180,3.4799436,180.61,180.58,80.60253692]
[1753064126510,3.4799436,180.59,180.58,80.60253692]
[1753064126693,5.79683871,180.61,180.57,0.03]
[1753064126694,0.26,180.6,180.57,39.05]
[1753064127005,3.4799436,180.58,180.57,39.05]
[1753064127575,9.01765541,180.58,180.57,0.03]
[1753064128111,9.27765541,180.58,180.56,0.03]
[1753064128410,7.2198872,180.57,180.55,0.2]
[1753064128610,6.9598872,180.56,180.55,0.2]
[1753064128916,7.2198872,180.56,180.55,0.2]
[1753064129309,12.75821241,180.56,180.55,0.2]
[1753064130084,29.54289638,180.56,180.54,0.2]
[1753064130382,7.2198872,180.55,180.54,0.2]
[1753064131082,7.2198872,180.55,180.53,0.2]
[1753064131303,12.75902523,180.54,180.52,0.03]
[1753064131609,3.4799436,180.53,180.52,0.03]
[1753064131784,26.26,180.57,180.52,0.75]
[1753064131988,3.4799436,180.53,180.52,0.03]
[1753064132795,0.26,180.53,180.52,0.03]
[1753064133104,3.4799436,180.53,180.52,0.03]
[1753064133725,5.79869736,180.55,180.52,0.03]
[1753064133911,3.4799436,180.53,180.52,0.03]
[1753064135490,3.7399436,180.53,180.52,0.03]
[1753064135691,3.7399436,180.53,180.5,0.03]
[1753064135692,9.27918915,180.53,180.5,0.03]
[1753064135908,3.4799436,180.51,180.5,0.03]
[1753064136604,16.78468397,180.55,180.5,0.75]
[1753064136791,3.4799436,180.51,180.5,0.75]
[1753064137997,3.4799436,180.51,180.5,1.25]
[1753064138221,3.4799436,180.51,180.5,40.29]
[1753064138511,1.6433,180.59,180.5,40.29]
[1753064138512,3.4799436,180.53,180.5,42.42151662]
[1753064138727,3.4799436,180.52,180.51,6.8241]
[1753064138891,3.4799436,180.52,180.5,41.1475]
[1753064138892,3.4799436,180.52,180.5,0.53]
[1753064139098,3.4799436,180.51,180.5,0.03]
[1753064139726,3.4799436,180.51,180.5,0.75]
[1753064140208,3.4799436,180.51,180.5,0.03]
[1753064140406,3.4799436,180.51,180.5,0.75]
[1753064140917,3.4799436,180.54,180.5,0.75]
[1753064141118,3.4799436,180.51,180.5,0.75]
[1753064142125,17.04468397,180.58,180.5,0.75]
[1753064142298,0.26,180.58,180.51,39.04]
[1753064142497,3.4799436,180.52,180.51,39.04]
[1753064143317,3.4799436,180.52,180.51,39.76]
[1753064144208,5.79740517,180.59,180.51,39.76]
[1753064144409,3.4799436,180.52,180.51,39.76]
[1753064148704,3.4799436,180.52,180.51,39.79]
[1753064151326,3.4799436,180.52,180.51,39.07]
[1753064152319,3.7399436,180.52,180.51,0.03]
[1753064152943,3.4799436,180.52,180.51,0.03]
[1753064157239,9.279496,180.52,180.51,0.03]
[1753064158039,3.7399436,180.52,180.51,0.03]
[1753064159135,5.53891733,180.55,180.51,0.03]
[1753064159335,3.4799436,180.52,180.51,0.03]
[1753064160249,3.7399436,180.52,180.51,0.03]
[1753064160732,9.279496,180.52,180.5,0.03]
[1753064160933,3.7399436,180.51,180.5,0.03]
[1753064161461,3.7399436,180.51,180.49,0.03]
[1753064161663,5.5395524,180.52,180.49,0.03]
[1753064161664,20.52462757,180.5,180.49,0.03]
[1753064162029,20.52462757,180.5,180.48,4.7175]
[1753064162349,3.7399436,180.49,180.48,4.7175]
[1753064162545,9.28041675,180.49,180.47,0.03]
[1753064162749,3.7399436,180.48,180.47,0.03]
[1753064162938,3.4799436,180.48,180.47,0.03]
[1753064163456,3.7399436,180.48,180.47,0.03]
[1753064164663,3.4799436,180.48,180.47,0.03]
[1753064165730,3.4799436,180.48,180.47,0.75]
[1753064166863,3.4799436,180.49,180.47,0.75]
[1753064167157,3.4799436,180.48,180.47,0.75]
[1753064167560,3.4799436,180.49,180.47,0.75]
[1753064167757,3.4799436,180.49,180.48,39.04]
[1753064167959,3.4799436,180.51,180.48,47.5242]
[1753064168132,3.4799436,180.51,180.49,0.72]
[1753064169461,0.06,180.54,180.49,81.32253692]
[1753064169758,3.4799436,180.52,180.5,0.72]
[1753064169960,3.4799436,180.51,180.49,80.60253692]
[1753064170260,3.5399436,180.54,180.49,119.64253692]
[1753064170261,3.4799436,180.5,180.49,119.64253692]
[1753064170446,3.4799436,180.5,180.49,80.60253692]
[1753064172142,0.06,180.51,180.49,80.60253692]
[1753064172341,0.06,180.51,180.5,0.72]
[1753064172579,3.5399436,180.51,180.5,0.72]
[1753064172946,0.06,180.51,180.5,0.72]
[1753064173467,3.5399436,180.51,180.5,0.72]
[1753064173781,0.06,180.51,180.5,0.72]
[1753064175260,0.06,180.51,180.5,81.32253692]
[1753064175680,0.06,180.51,180.5,89.78765354]
[1753064175894,0.06,180.54,180.53,26.0]
[1753064176050,0.06,180.59,180.53,174.37218904]
[1753064176378,0.06,180.59,180.57,3.4799436]
[1753064176556,0.06,180.59,180.58,39.59377118]
[1753064176870,0.06,180.59,180.58,40.31377118]
[1753064177258,0.06,180.59,180.58,43.79371478]
[1753064177460,0.06,180.59,180.58,50.09031478]
[1753064177662,0.06,180.59,180.58,55.62802659]
[1753064179365,0.06,180.59,180.58,46.61037118]
[1753064179569,0.06,180.59,180.58,50.09031478]
[1753064180283,0.06,180.59,180.58,46.61037118]
[1753064180466,0.06,180.59,180.58,50.09031478]
[1753064180675,0.06,180.59,180.58,7.57037118]
[1753064180861,0.06,180.59,180.58,46.0366]
[1753064181554,0.06,180.59,180.58,50.07031478]
[1753064181752,0.06,180.59,180.58,81.60802659]
[1753064181990,0.06,180.59,180.58,98.39271056]
[1753064182296,0.06,180.59,180.58,100.00721056]
[1753064183355,0.06,180.59,180.58,94.46949875]
[1753064184306,0.06,180.59,180.58,74.20487118]
[1753064184596,0.06,180.59,180.58,154.8074081]
[1753064184890,0.06,180.59,180.58,154.25363692]
[1753064186880,0.06,180.59,180.58,157.73358052]
[1753064187073,0.06,180.59,180.58,174.51826449]
[1753064187588,0.06,180.59,180.58,180.0559763]
[1753064187753,0.06,180.59,180.58,154.0559763]
[1753064187958,0.06,180.59,180.58,187.2459763]
[1753064188584,0.06,180.63,180.58,187.2459763]
[1753064188805,0.06,180.63,180.62,46.26462757]
[1753064189008,0.06,180.63,180.62,168.67170605]
[1753064189220,0.06,180.63,180.62,169.39170605]
[1753064190508,0.06,180.63,180.62,174.92819148]
[1753064190707,0.06,180.63,180.62,208.11819148]
[1753064190910,0.06,180.63,180.62,215.84239148]
[1753064191411,0.06,180.66,180.65,126.80716449]
[1753064191618,0.06,180.66,180.65,165.80716449]
[1753064191912,0.06,180.66,180.65,173.71716449]
[1753064192414,0.06,180.66,180.65,179.2527305]
[1753064192709,0.06,180.66,180.65,173.71716449]
[1753064192910,0.06,180.66,180.65,134.71716449]
[1753064193111,0.06,180.66,180.65,107.26253692]
[1753064193407,0.06,180.66,180.65,119.54253692]
[1753064193615,0.06,180.66,180.65,120.26253692]
[1753064196315,0.06,180.66,180.65,123.74248052]
[1753064196496,0.06,180.7,180.69,26.0]
[1753064196687,0.06,180.7,180.69,172.53519854]
[1753064196889,0.06,180.7,180.69,174.22796449]
[1753064197408,0.06,180.7,180.69,176.40002563]
[1753064198618,0.06,180.7,180.69,170.74802089]
[1753064198806,0.06,180.7,180.69,176.40002563]
[1753064199128,0.06,180.7,180.69,153.96333692]
[1753064199419,0.06,180.7,180.69,159.61534166]
[1753064204839,0.06,180.7,180.69,106.48253692]
[1753064205129,0.06,180.7,180.69,145.46253692]
[1753064205907,0.06,180.7,180.69,146.15253692]
[1753064206109,0.06,180.7,180.69,145.46253692]
[1753064206308,0.06,180.7,180.69,119.46253692]
[1753064207128,0.06,180.7,180.69,80.48253692]
[1753064207434,0.06,180.7,180.69,119.46253692]
[1753064209915,0.06,180.7,180.69,120.15253692]
[1753064210228,0.06,180.7,180.69,125.80454166]
[1753064213249,0.06,180.7,180.69,120.15253692]
[1753064214085,0.06,180.73,180.71,24.88738397]
[1753064214247,0.06,180.73,180.72,65.53334218]
[1753064214455,0.06,180.73,180.72,71.87534692]
[1753064214971,0.06,180.73,180.72,98.7139859]
[1753064215174,0.06,180.73,180.72,94.19345275]
[1753064215361,0.06,180.73,180.72,127.38345275]
[1753064215553,0.06,180.73,180.72,126.83011057]
[1753064216178,0.06,180.73,180.72,274.83011057]
[1753064217177,0.06,180.73,180.72,272.64521024]
[1753064217568,0.06,180.73,180.72,269.17810583]
[1753064217756,0.06,180.73,180.72,272.64521024]
[1753064218281,0.06,180.73,180.72,267.11178838]
[1753064218475,0.06,180.73,180.72,207.88]
[1753064218678,0.06,180.73,180.72,246.84]
[1753064219171,0.06,180.73,180.72,250.30710441]
[1753064219378,0.06,180.73,180.72,246.84]
[1753064219684,0.06,180.73,180.72,182.72964133]
[1753064219853,0.06,180.73,180.72,179.26253692]
[1753064220161,0.06,180.73,180.72,178.57253692]
[1753064221159,0.06,180.73,180.72,179.26253692]
[1753064221373,0.06,180.73,180.72,182.72964133]
[1753064221569,0.06,180.73,180.72,179.26253692]
[1753064223479,0.06,180.73,180.72,182.72964133]
[1753064223858,0.06,180.73,180.72,199.5143253]
[1753064224182,0.06,180.73,180.72,205.04774716]
[1753064224385,0.06,180.73,180.72,179.04774716]
[1753064225695,0.06,180.74,180.73,106.36253692]
[1753064225902,0.06,180.74,180.73,111.07295289]
[1753064226503,0.06,180.74,180.73,107.60584848]
[1753064226806,0.06,180.74,180.73,106.36253692]
[1753064227008,0.06,180.74,180.73,80.36253692]
[1753064227308,3.96710441,180.74,180.73,80.36253692]
[1753064227494,3.96710441,180.74,180.73,38.96]
[1753064228607,3.52710441,180.74,180.73,38.96]
[1753064228779,0.06,180.74,180.73,38.96]
[1753064231709,0.06,180.74,180.73,119.32253692]
[1753064231889,3.52710441,180.74,180.73,119.32253692]
[1753064232208,3.96710441,180.74,180.73,119.32253692]
[1753064232505,3.52710441,180.74,180.73,119.32253692]
[1753064232890,3.96710441,180.74,180.73,80.36253692]
[1753064233093,3.96710441,180.74,180.72,119.32253692]
[1753064233320,3.90710441,180.73,180.72,119.32253692]
[1753064233501,3.90710441,180.73,180.72,80.36253692]
[1753064234021,3.46710441,180.73,180.72,80.36253692]
[1753064234235,0.06,180.74,180.71,119.32253692]
[1753064234405,0.06,180.74,180.72,81.07253692]
[1753064234608,0.06,180.74,180.73,38.96]
[1753064235300,3.96710441,180.74,180.72,80.36253692]
[1753064235506,0.06,180.74,180.73,38.96]
[1753064235709,3.52710441,180.74,180.72,119.32253692]
[1753064235907,3.46710441,180.73,180.72,119.32253692]
[1753064237520,3.46710441,180.73,180.72,38.96]
[1753064240817,3.52710441,180.74,180.72,38.96]
[1753064241518,3.46710441,180.73,180.72,38.96]
[1753064243415,3.46710441,180.73,180.72,119.32253692]
[1753064244470,0.06,180.74,180.72,119.32253692]
[1753064244471,0.06,180.74,180.72,120.03253692]
[1753064244749,0.06,180.74,180.73,0.71]
[1753064245942,0.06,180.74,180.72,119.32253692]
[1753064246139,0.06,180.74,180.72,120.03253692]
[1753064246344,0.06,180.74,180.73,0.71]
[1753064247355,0.06,180.74,180.73,1.26331156]
[1753064247843,0.06,180.74,180.73,113.92865255]
[1753064248023,0.06,180.76,180.75,42.78468397]
[1753064248227,0.06,180.76,180.75,85.74503872]
[1753064248434,0.06,180.76,180.75,86.45503872]
[1753064250483,0.06,180.76,180.75,91.98754217]
[1753064251667,0.06,180.76,180.75,207.04497909]
[1753064251838,0.00174796,180.76,180.75,206.49172875]
[1753064254047,0.00174796,180.76,180.75,203.02462434]
[1753064254367,0.00174796,180.76,180.75,206.49172875]
[1753064257881,0.00174796,180.76,180.75,203.02462434]
[1753064258097,0.00174796,180.76,180.75,206.49172875]
[1753064260973,0.00174796,180.76,180.75,206.52172875]
[1753064261966,0.06,180.79,180.78,113.37078896]
[1753064262284,0.06,180.79,180.78,321.09573587]
[1753064262482,0.06,180.79,180.78,321.25257734]
[1753064262690,1e-08,180.79,180.78,344.26207734]
[1753064262982,0.06,180.8,180.79,49.97468397]
[1753064263172,0.06,180.8,180.79,308.89270846]
[1753064263384,0.06,180.8,180.79,310.39520846]
[1753064264100,0.06,180.8,180.79,308.99227902]
[1753064264271,0.06,180.8,180.79,312.45938343]
[1753064264473,0.06,180.84,180.8,23.29771068]
[1753064264691,0.06,180.84,180.8,120.15501684]
[1753064265000,0.06,180.84,180.8,119.6019195]
[1753064266302,0.06,180.84,180.8,125.13289295]
[1753064266597,0.06,180.84,180.8,98.57276183]
[1753064266897,0.06,180.84,180.8,99.12585917]
[1753064269696,0.06,180.84,180.8,327.30664813]
[1753064269909,0.06,180.84,180.8,326.75355079]
[1753064270279,0.06,180.84,180.8,323.28644638]
[1753064270476,0.06,180.84,180.8,326.75355079]
[1753064271424,0.5,180.84,180.8,283.88547293]
[1753064271581,0.5,180.81,180.8,119.10078896]
[1753064272403,0.5,180.81,180.8,145.10078896]
[1753064272796,0.06,180.81,180.8,145.10078896]
[1753064274215,0.06,180.81,180.8,64.92]
[1753064274414,0.5,180.81,180.8,64.92]
[1753064275489,0.5,180.81,180.8,38.92]
[1753064275714,3.96710441,180.81,180.8,38.92]
[1753064276094,3.96710441,180.81,180.76,87.5]
[1753064276095,3.96710441,180.81,180.79,38.9]
[1753064276311,3.46710441,180.8,180.79,38.9]
[1753064276509,3.90710441,180.8,180.79,38.9]
[1753064277220,0.44,180.8,180.79,38.9]
[1753064277404,3.46710441,180.8,180.79,38.9]
[1753064277603,3.46710441,180.8,180.79,126.4]
[1753064277803,0.06,180.81,180.79,38.9]
[1753064278321,0.5,180.81,180.79,38.9]
[1753064278897,0.06,180.81,180.79,38.9]
[1753064280112,3.96710441,180.81,180.79,38.9]
[1753064280298,0.44,180.8,180.79,38.9]